[Event "*** SCC Grand Prix: Titled Tuesday Blitz"]
[Site "Chess.com"]
[Date "2020.07.07"]
[Round "3"]
[White "Rap_woyska"]
[Black "Joshukid"]
[Result "1-0"]
[WhiteElo "2442"]
[BlackElo "2674"]
[TimeControl "180+1"]
[EndTime "10:30:47 PDT"]
[Termination "Rap_woyska won by checkmate"]

1. c4 {[%clk 0:03:00.9]} 1... e6 {[%clk 0:02:59.7]} 2. Nf3 {[%clk 0:03:00.8]}
2... d5 {[%clk 0:02:50.4]} 3. e3 {[%clk 0:03:00.5]} 3... Nf6 {[%clk 0:02:49.7]}
4. b3 {[%clk 0:03:00.9]} 4... Nc6 {[%clk 0:02:46]} 5. Bb2 {[%clk 0:03:00.2]}
5... g6 {[%clk 0:02:46.3]} 6. Nc3 {[%clk 0:02:53.1]} 6... Bg7 {[%clk 0:02:43.8]}
7. d4 {[%clk 0:02:52.2]} 7... O-O {[%clk 0:02:43.5]} 8. Bd3 {[%clk 0:02:32.5]}
8... b6 {[%clk 0:02:41]} 9. O-O {[%clk 0:02:31.5]} 9... Bb7 {[%clk 0:02:40.4]}
10. a3 {[%clk 0:02:29.5]} 10... Ne7 {[%clk 0:02:36.4]} 11. cxd5 {[%clk
0:02:15.3]} 11... exd5 {[%clk 0:02:32.5]} 12. b4 {[%clk 0:02:11]} 12... Nc8
{[%clk 0:02:23.6]} 13. Qc2 {[%clk 0:01:52.2]} 13... Nd6 {[%clk 0:02:18.9]} 14.
Rfc1 {[%clk 0:01:51.1]} 14... a6 {[%clk 0:02:04.7]} 15. Ne5 {[%clk 0:01:46.9]}
15... Rc8 {[%clk 0:02:02.3]} 16. a4 {[%clk 0:01:41.2]} 16... Re8 {[%clk
0:01:39.8]} 17. b5 {[%clk 0:01:40.4]} 17... a5 {[%clk 0:01:38.5]} 18. Ba3 {[%clk
0:01:39.1]} 18... Nfe4 {[%clk 0:01:32.1]} 19. Ne2 {[%clk 0:01:16.3]} 19... Qh4
{[%clk 0:01:07.8]} 20. Nf4 {[%clk 0:00:55.2]} 20... g5 {[%clk 0:00:52.7]} 21.
Nf3 {[%clk 0:00:55]} 21... Qh6 {[%clk 0:00:49.3]} 22. Ne2 {[%clk 0:00:45.7]}
22... g4 {[%clk 0:00:45.7]} 23. Ne5 {[%clk 0:00:45.5]} 23... Rxe5 {[%clk
0:00:27.4]} 24. dxe5 {[%clk 0:00:45.8]} 24... Bxe5 {[%clk 0:00:28.3]} 25. Ng3
{[%clk 0:00:43.6]} 25... Bxa1 {[%clk 0:00:25.7]} 26. Rxa1 {[%clk 0:00:42.8]}
26... c5 {[%clk 0:00:24]} 27. bxc6 {[%clk 0:00:36.3]} 27... Rxc6 {[%clk
0:00:24.4]} 28. Qe2 {[%clk 0:00:23]} 28... Qf6 {[%clk 0:00:22.6]} 29. Bb2 {[%clk
0:00:20.6]} 29... Qe6 {[%clk 0:00:20]} 30. Qe1 {[%clk 0:00:13.7]} 30... f6
{[%clk 0:00:16.9]} 31. Bd4 {[%clk 0:00:13.4]} 31... Nf5 {[%clk 0:00:14.5]} 32.
Bb2 {[%clk 0:00:12.4]} 32... Nfxg3 {[%clk 0:00:14.6]} 33. hxg3 {[%clk
0:00:13.3]} 33... Nc5 {[%clk 0:00:12.4]} 34. Bb5 {[%clk 0:00:10.5]} 34... Rc7
{[%clk 0:00:11.7]} 35. Rd1 {[%clk 0:00:10.5]} 35... Ne4 {[%clk 0:00:10.8]} 36.
Bd4 {[%clk 0:00:08.5]} 36... Qf5 {[%clk 0:00:11]} 37. Rc1 {[%clk 0:00:07.9]}
37... Rxc1 {[%clk 0:00:11.1]} 38. Qxc1 {[%clk 0:00:08.8]} 38... Qxf2+ {[%clk
0:00:11.7]} 39. Kh1 {[%clk 0:00:09.5]} 39... Nxg3+ {[%clk 0:00:12]} 40. Kh2
{[%clk 0:00:09.8]} 40... Nf1+ {[%clk 0:00:12.7]} 41. Kh1 {[%clk 0:00:09.7]}
41... Ng3+ {[%clk 0:00:12.5]} 42. Kh2 {[%clk 0:00:10.1]} 42... Ne4 {[%clk
0:00:10.4]} 43. Bd7 {[%clk 0:00:03.6]} 43... g3+ {[%clk 0:00:09.9]} 44. Kh3
{[%clk 0:00:04.1]} 44... Ng5+ {[%clk 0:00:08.5]} 45. Kg4 {[%clk 0:00:04.6]}
45... Qxg2 {[%clk 0:00:06.5]} 46. Qc7 {[%clk 0:00:03.7]} 46... Qf3+ {[%clk
0:00:05.2]} 47. Kh4 {[%clk 0:00:02.6]} 47... Ne6 {[%clk 0:00:02.6]} 48. Qb8+
{[%clk 0:00:01.6]} 48... Kf7 {[%clk 0:00:02.2]} 49. Bxe6+ {[%clk 0:00:02.3]}
49... Kxe6 {[%clk 0:00:03]} 50. Qxb7 {[%clk 0:00:02.8]} 50... Qe4+ {[%clk
0:00:03.9]} 51. Kh3 {[%clk 0:00:02.7]} 51... g2 {[%clk 0:00:04.8]} 52. Qc6+
{[%clk 0:00:02.9]} 52... Kf5 {[%clk 0:00:05.7]} 53. Qc1 {[%clk 0:00:03]} 53...
Qf3+ {[%clk 0:00:05.8]} 54. Kh2 {[%clk 0:00:02.8]} 54... Qf1 {[%clk 0:00:06.7]}
55. Qc2+ {[%clk 0:00:02.3]} 55... Ke6 {[%clk 0:00:06.6]} 56. Qxg2 {[%clk
0:00:03.2]} 56... Qf5 {[%clk 0:00:06.2]} 57. Bxb6 {[%clk 0:00:02.4]} 57... Qh5+
{[%clk 0:00:05.7]} 58. Qh3+ {[%clk 0:00:02.8]} 58... Qxh3+ {[%clk 0:00:04.9]}
59. Kxh3 {[%clk 0:00:03.7]} 59... f5 {[%clk 0:00:03.9]} 60. Bxa5 {[%clk
0:00:04]} 60... Ke5 {[%clk 0:00:04.1]} 61. Bc3+ {[%clk 0:00:03]} 61... Ke4
{[%clk 0:00:03.7]} 62. a5 {[%clk 0:00:03.5]} 62... Kxe3 {[%clk 0:00:04.3]} 63.
a6 {[%clk 0:00:03.7]} 63... d4 {[%clk 0:00:03.8]} 64. Ba5 {[%clk 0:00:04]} 64...
f4 {[%clk 0:00:02.7]} 65. a7 {[%clk 0:00:04.4]} 65... f3 {[%clk 0:00:03.6]} 66.
a8=Q {[%clk 0:00:05.3]} 66... f2 {[%clk 0:00:04.5]} 67. Kg2 {[%clk 0:00:05.2]}
67... Ke2 {[%clk 0:00:05.4]} 68. Qf3# {[%clk 0:00:05.6]} 1-0

[Event "*** SCC Grand Prix: Titled Tuesday Blitz"]
[Site "Chess.com"]
[Date "2020.07.07"]
[Round "3"]
[White "silverback96"]
[Black "TST2014"]
[Result "1/2-1/2"]
[WhiteElo "2242"]
[BlackElo "2491"]
[TimeControl "180+1"]
[EndTime "10:30:47 PDT"]
[Termination "Game drawn - insufficient material"]

1. d4 {[%clk 0:03:00.9]} 1... Nf6 {[%clk 0:02:57.1]} 2. c4 {[%clk 0:03:00.9]}
2... c5 {[%clk 0:02:53.4]} 3. d5 {[%clk 0:03:01]} 3... b5 {[%clk 0:02:53.5]} 4.
cxb5 {[%clk 0:03:01.9]} 4... a6 {[%clk 0:02:53.7]} 5. bxa6 {[%clk 0:03:02.8]}
5... Bxa6 {[%clk 0:02:54.3]} 6. Nc3 {[%clk 0:03:03.7]} 6... g6 {[%clk 0:02:54]}
7. e4 {[%clk 0:03:04]} 7... Bxf1 {[%clk 0:02:52.9]} 8. Kxf1 {[%clk 0:03:04.9]}
8... d6 {[%clk 0:02:52.6]} 9. Nf3 {[%clk 0:03:05.1]} 9... Bg7 {[%clk 0:02:53.1]}
10. g3 {[%clk 0:03:06]} 10... O-O {[%clk 0:02:53.6]} 11. Kg2 {[%clk 0:03:06.9]}
11... Nbd7 {[%clk 0:02:54]} 12. a4 {[%clk 0:03:07.1]} 12... Qb6 {[%clk
0:02:48.5]} 13. Qc2 {[%clk 0:03:00.1]} 13... Rfb8 {[%clk 0:02:46.8]} 14. Nb5
{[%clk 0:03:00.1]} 14... Ne8 {[%clk 0:02:36.4]} 15. Bg5 {[%clk 0:02:59.7]} 15...
Kf8 {[%clk 0:02:34.4]} 16. Bd2 {[%clk 0:02:59.7]} 16... Nc7 {[%clk 0:02:32.4]}
17. Nxc7 {[%clk 0:02:59.4]} 17... Qxc7 {[%clk 0:02:32.3]} 18. Bc3 {[%clk
0:03:00.3]} 18... Qb7 {[%clk 0:02:17.9]} 19. Rhb1 {[%clk 0:02:53.7]} 19... Qb3
{[%clk 0:02:17.1]} 20. Qxb3 {[%clk 0:02:53.1]} 20... Rxb3 {[%clk 0:02:16.9]} 21.
Bxg7+ {[%clk 0:02:53.2]} 21... Kxg7 {[%clk 0:02:16.3]} 22. Nd2 {[%clk
0:02:53.3]} 22... Rb4 {[%clk 0:02:05.6]} 23. b3 {[%clk 0:02:52.7]} 23... f5
{[%clk 0:01:57.8]} 24. Re1 {[%clk 0:01:57.9]} 24... Kf7 {[%clk 0:01:44.1]} 25.
f3 {[%clk 0:01:18.4]} 25... Ne5 {[%clk 0:01:36.4]} 26. f4 {[%clk 0:00:59.3]}
26... Rd4 {[%clk 0:01:30.8]} 27. Re2 {[%clk 0:00:48.1]} 27... Nd3 {[%clk
0:01:28.6]} 28. Nf3 {[%clk 0:00:31.7]} 28... Rb4 {[%clk 0:01:17]} 29. Ng5+
{[%clk 0:00:31.7]} 29... Kg8 {[%clk 0:00:45.5]} 30. exf5 {[%clk 0:00:32.6]}
30... Rxb3 {[%clk 0:00:39.5]} 31. fxg6 {[%clk 0:00:30.6]} 31... hxg6 {[%clk
0:00:34.8]} 32. Rxe7 {[%clk 0:00:30.4]} 32... Rb2+ {[%clk 0:00:34.1]} 33. Kg1
{[%clk 0:00:30.3]} 33... c4 {[%clk 0:00:29.7]} 34. Rc7 {[%clk 0:00:27]} 34...
Nc5 {[%clk 0:00:26.6]} 35. Ne6 {[%clk 0:00:25.6]} 35... c3 {[%clk 0:00:23]} 36.
Nxc5 {[%clk 0:00:24.8]} 36... c2 {[%clk 0:00:23.2]} 37. Nd3 {[%clk 0:00:23]}
37... Rb1+ {[%clk 0:00:23.4]} 38. Kf2 {[%clk 0:00:20.1]} 38... Rxa1 {[%clk
0:00:23]} 39. Rxc2 {[%clk 0:00:21]} 39... R1xa4 {[%clk 0:00:22.1]} 40. Rc6
{[%clk 0:00:19.6]} 40... R4a6 {[%clk 0:00:21.5]} 41. Rxa6 {[%clk 0:00:18.6]}
41... Rxa6 {[%clk 0:00:21.1]} 42. Ke3 {[%clk 0:00:17.5]} 42... Ra4 {[%clk
0:00:20.8]} 43. h4 {[%clk 0:00:17]} 43... Kf7 {[%clk 0:00:21.3]} 44. Nf2 {[%clk
0:00:16.7]} 44... Kf6 {[%clk 0:00:20.9]} 45. Ne4+ {[%clk 0:00:16.5]} 45... Ke7
{[%clk 0:00:21.4]} 46. Kf3 {[%clk 0:00:15.1]} 46... Rd4 {[%clk 0:00:20.2]} 47.
Ng5 {[%clk 0:00:14.6]} 47... Rxd5 {[%clk 0:00:20.1]} 48. g4 {[%clk 0:00:14.6]}
48... Rd1 {[%clk 0:00:19.8]} 49. h5 {[%clk 0:00:14.6]} 49... gxh5 {[%clk
0:00:20]} 50. gxh5 {[%clk 0:00:15.5]} 50... d5 {[%clk 0:00:20.6]} 51. h6 {[%clk
0:00:15.3]} 51... Kf6 {[%clk 0:00:21]} 52. h7 {[%clk 0:00:14.3]} 52... Kg7
{[%clk 0:00:21.2]} 53. Ke3 {[%clk 0:00:14.6]} 53... d4+ {[%clk 0:00:20.4]} 54.
Ke4 {[%clk 0:00:14.8]} 54... d3 {[%clk 0:00:20.7]} 55. Ke3 {[%clk 0:00:15.1]}
55... d2 {[%clk 0:00:20.7]} 56. Ke2 {[%clk 0:00:15.3]} 56... Rf1 {[%clk
0:00:15.3]} 57. Kxd2 {[%clk 0:00:16.2]} 57... Kh8 {[%clk 0:00:15.1]} 58. Ke3
{[%clk 0:00:16]} 58... Re1+ {[%clk 0:00:15.3]} 59. Kf3 {[%clk 0:00:15.1]} 59...
Rf1+ {[%clk 0:00:15.4]} 60. Kg4 {[%clk 0:00:15.5]} 60... Rg1+ {[%clk 0:00:15.7]}
61. Kf5 {[%clk 0:00:15.7]} 61... Ra1 {[%clk 0:00:15.3]} 62. Kg6 {[%clk
0:00:15.5]} 62... Ra6+ {[%clk 0:00:14.9]} 63. Kf7 {[%clk 0:00:15.3]} 63... Ra7+
{[%clk 0:00:14.6]} 64. Kg6 {[%clk 0:00:15.4]} 64... Ra6+ {[%clk 0:00:14.9]} 65.
Kh5 {[%clk 0:00:15.6]} 65... Kg7 {[%clk 0:00:14.3]} 66. Kg4 {[%clk 0:00:15]}
66... Ra4 {[%clk 0:00:13.4]} 67. Kf5 {[%clk 0:00:14.2]} 67... Ra5+ {[%clk
0:00:13.6]} 68. Kg4 {[%clk 0:00:15.1]} 68... Ra4 {[%clk 0:00:13.9]} 69. Kg3
{[%clk 0:00:14.3]} 69... Ra3+ {[%clk 0:00:13.9]} 70. Kf2 {[%clk 0:00:14.5]}
70... Rb3 {[%clk 0:00:12.9]} 71. Ke2 {[%clk 0:00:14.5]} 71... Ra3 {[%clk
0:00:12.9]} 72. Kf2 {[%clk 0:00:14.7]} 72... Ra4 {[%clk 0:00:13]} 73. Kg2 {[%clk
0:00:14.4]} 73... Rxf4 {[%clk 0:00:12.4]} 74. Ne6+ {[%clk 0:00:14.4]} 74... Kxh7
{[%clk 0:00:12.7]} 75. Nxf4 {[%clk 0:00:15.3]} 1/2-1/2

[Event "*** SCC Grand Prix: Titled Tuesday Blitz"]
[Site "Chess.com"]
[Date "2020.07.07"]
[Round "3"]
[White "andriipalchuk"]
[Black "AlexOstrovskiy"]
[Result "0-1"]
[WhiteElo "2438"]
[BlackElo "2666"]
[TimeControl "180+1"]
[EndTime "10:30:49 PDT"]
[Termination "AlexOstrovskiy won by resignation"]

1. e4 {[%clk 0:03:00]} 1... c6 {[%clk 0:02:59.3]} 2. d4 {[%clk 0:02:58.5]} 2...
d5 {[%clk 0:03:00.2]} 3. Nc3 {[%clk 0:02:59]} 3... dxe4 {[%clk 0:02:58.2]} 4.
Nxe4 {[%clk 0:02:59.9]} 4... Nf6 {[%clk 0:02:57.5]} 5. Ng3 {[%clk 0:02:56.8]}
5... h5 {[%clk 0:02:52.6]} 6. h4 {[%clk 0:02:56.7]} 6... c5 {[%clk 0:02:52.7]}
7. Nf3 {[%clk 0:02:55.8]} 7... Bg4 {[%clk 0:02:50]} 8. Be3 {[%clk 0:02:51.6]}
8... cxd4 {[%clk 0:02:46.2]} 9. Qxd4 {[%clk 0:02:48.4]} 9... Nc6 {[%clk
0:02:44.3]} 10. Qxd8+ {[%clk 0:02:46]} 10... Rxd8 {[%clk 0:02:45.2]} 11. Be2
{[%clk 0:02:40.8]} 11... e5 {[%clk 0:02:37.2]} 12. c3 {[%clk 0:02:34.8]} 12...
Nd5 {[%clk 0:02:37.1]} 13. Bd2 {[%clk 0:02:27.1]} 13... f6 {[%clk 0:02:33.9]}
14. Bc4 {[%clk 0:01:56.5]} 14... Nb6 {[%clk 0:02:21.5]} 15. Bb5 {[%clk
0:01:49.3]} 15... a6 {[%clk 0:02:18.1]} 16. Be2 {[%clk 0:01:46.5]} 16... Be7
{[%clk 0:02:00.1]} 17. O-O-O {[%clk 0:01:37.9]} 17... Kf7 {[%clk 0:01:57.3]} 18.
Nh2 {[%clk 0:01:06.5]} 18... Bxe2 {[%clk 0:01:54.6]} 19. Nxe2 {[%clk 0:01:07.4]}
19... Nc4 {[%clk 0:01:55.1]} 20. b3 {[%clk 0:01:03.6]} 20... Nxd2 {[%clk
0:01:48.8]} 21. Rxd2 {[%clk 0:01:04.5]} 21... Rxd2 {[%clk 0:01:46]} 22. Kxd2
{[%clk 0:01:05.4]} 22... f5 {[%clk 0:01:42.2]} 23. g3 {[%clk 0:01:00.5]} 23...
e4 {[%clk 0:01:39.7]} 24. Nf1 {[%clk 0:00:57.2]} 24... Ne5 {[%clk 0:01:35.6]}
25. Ne3 {[%clk 0:00:56.4]} 25... g6 {[%clk 0:01:35.3]} 26. Nd4 {[%clk
0:00:55.2]} 26... b5 {[%clk 0:01:29.7]} 27. Ke2 {[%clk 0:00:48]} 27... Rc8
{[%clk 0:01:28.3]} 28. Rc1 {[%clk 0:00:47.2]} 28... Bc5 {[%clk 0:01:09.1]} 29.
Rd1 {[%clk 0:00:34.8]} 29... Ba3 {[%clk 0:00:59.5]} 30. Nd5 {[%clk 0:00:33.5]}
30... Bf8 {[%clk 0:00:47.2]} 31. f3 {[%clk 0:00:30.1]} 31... exf3+ {[%clk
0:00:38.9]} 32. Nxf3 {[%clk 0:00:31]} 32... Ng4 {[%clk 0:00:35.9]} 33. Ng5+
{[%clk 0:00:30.3]} 33... Kg8 {[%clk 0:00:29.9]} 34. Nf4 {[%clk 0:00:25.7]} 34...
Re8+ {[%clk 0:00:18.7]} 35. Kf3 {[%clk 0:00:20.5]} 35... Re3+ {[%clk 0:00:15.7]}
36. Kg2 {[%clk 0:00:20.7]} 36... Rxc3 {[%clk 0:00:16.4]} 37. Rd8 {[%clk
0:00:21.1]} 37... Rc2+ {[%clk 0:00:15.4]} 38. Kg1 {[%clk 0:00:20.2]} 38... Rc1+
{[%clk 0:00:13.6]} 39. Kg2 {[%clk 0:00:20.4]} 39... Rc2+ {[%clk 0:00:14.2]} 40.
Kf1 {[%clk 0:00:19.9]} 40... Rc1+ {[%clk 0:00:04.8]} 41. Ke2 {[%clk 0:00:19.3]}
41... Rc2+ {[%clk 0:00:02.9]} 42. Ke1 {[%clk 0:00:13.6]} 42... Rc1+ {[%clk
0:00:01.7]} 43. Kd2 {[%clk 0:00:13.8]} 43... Ra1 {[%clk 0:00:01.4]} 44. Nfe6
{[%clk 0:00:13.5]} 44... Rxa2+ {[%clk 0:00:02.3]} 45. Kd3 {[%clk 0:00:13.2]}
45... Ne5+ {[%clk 0:00:02.3]} 46. Ke3 {[%clk 0:00:12.3]} 46... Ng4+ {[%clk
0:00:02.7]} 47. Kd3 {[%clk 0:00:09.8]} 47... Ne5+ {[%clk 0:00:02.9]} 48. Ke3
{[%clk 0:00:07.3]} 48... Ng4+ {[%clk 0:00:02.2]} 49. Kd4 {[%clk 0:00:06.2]}
49... Rd2+ {[%clk 0:00:02.1]} 50. Kc3 {[%clk 0:00:05.9]} 50... Rxd8 {[%clk
0:00:03]} 51. Nxd8 {[%clk 0:00:06.8]} 51... Bd6 {[%clk 0:00:02.5]} 52. Nde6
{[%clk 0:00:03.9]} 52... Bxg3 {[%clk 0:00:02.6]} 53. Nf3 {[%clk 0:00:04.8]}
53... Bd6 {[%clk 0:00:02.3]} 54. b4 {[%clk 0:00:03.6]} 54... Ne5 {[%clk
0:00:02.9]} 55. Nfg5 {[%clk 0:00:03]} 55... Nf7 {[%clk 0:00:02.9]} 56. Nf3
{[%clk 0:00:01.6]} 56... Be7 {[%clk 0:00:03.3]} 57. Nf4 {[%clk 0:00:01.7]} 57...
Bf6+ {[%clk 0:00:03.3]} 58. Kd3 {[%clk 0:00:01.8]} 58... Kh7 {[%clk 0:00:04]}
59. Nd5 {[%clk 0:00:01.9]} 59... Ne5+ {[%clk 0:00:04.2]} 60. Ke3 {[%clk
0:00:02.4]} 60... Ng4+ {[%clk 0:00:03.9]} 61. Kf4 {[%clk 0:00:02.3]} 61... Bd8
{[%clk 0:00:04.8]} 62. Nc3 {[%clk 0:00:02]} 62... Be7 {[%clk 0:00:04.6]} 63. Kg3
{[%clk 0:00:02.2]} 63... Bxb4 {[%clk 0:00:04.7]} 64. Nd5 {[%clk 0:00:03.1]}
64... Bd6+ {[%clk 0:00:05.1]} 65. Kh3 {[%clk 0:00:03.3]} 65... b4 {[%clk
0:00:05.4]} 66. Ng5+ {[%clk 0:00:04.2]} 66... Kg8 {[%clk 0:00:05.3]} 67. Ne6
{[%clk 0:00:05.1]} 67... Kf7 {[%clk 0:00:05.4]} 68. Nd4 {[%clk 0:00:05.4]} 68...
a5 {[%clk 0:00:05]} 69. Nb6 {[%clk 0:00:05.9]} 69... Be5 {[%clk 0:00:04.2]} 70.
Nb3 {[%clk 0:00:05.3]} 70... Bc7 {[%clk 0:00:03.6]} 71. Na4 {[%clk 0:00:05]}
71... Bd8 {[%clk 0:00:02.9]} 72. Nac5 {[%clk 0:00:04.6]} 72... Nf2+ {[%clk
0:00:02.8]} 73. Kg3 {[%clk 0:00:04.4]} 73... Ne4+ {[%clk 0:00:03.7]} 74. Nxe4
{[%clk 0:00:03.8]} 74... fxe4 {[%clk 0:00:04.6]} 75. Kf4 {[%clk 0:00:04.4]}
75... a4 {[%clk 0:00:05.1]} 76. Nc1 {[%clk 0:00:04.8]} 76... b3 {[%clk
0:00:05.4]} 0-1

[Event "*** SCC Grand Prix: Titled Tuesday Blitz"]
[Site "Chess.com"]
[Date "2020.07.07"]
[Round "3"]
[White "Sankalp_Gupta2003"]
[Black "attack2mateU"]
[Result "1-0"]
[WhiteElo "2833"]
[BlackElo "2625"]
[TimeControl "180+1"]
[EndTime "10:30:52 PDT"]
[Termination "Sankalp_Gupta2003 won by resignation"]

1. e4 {[%clk 0:03:00.9]} 1... c5 {[%clk 0:02:59.6]} 2. Nf3 {[%clk 0:03:01.3]}
2... d6 {[%clk 0:02:59.4]} 3. d4 {[%clk 0:03:01.6]} 3... cxd4 {[%clk 0:03:00.3]}
4. Qxd4 {[%clk 0:03:02.3]} 4... Nc6 {[%clk 0:02:59.4]} 5. Qe3 {[%clk 0:03:02.6]}
5... g6 {[%clk 0:02:58.6]} 6. Be2 {[%clk 0:03:00]} 6... Bg7 {[%clk 0:02:59.1]}
7. O-O {[%clk 0:02:59.5]} 7... Bg4 {[%clk 0:02:57]} 8. Rd1 {[%clk 0:02:58.3]}
8... Qb6 {[%clk 0:02:33]} 9. Qxb6 {[%clk 0:02:48]} 9... axb6 {[%clk 0:02:33.9]}
10. c3 {[%clk 0:02:48.4]} 10... Nf6 {[%clk 0:02:32.5]} 11. Nbd2 {[%clk
0:02:47.3]} 11... d5 {[%clk 0:02:04]} 12. exd5 {[%clk 0:02:37.8]} 12... Nxd5
{[%clk 0:02:04.7]} 13. Nc4 {[%clk 0:02:37.7]} 13... Rd8 {[%clk 0:02:04.6]} 14.
h3 {[%clk 0:02:33.5]} 14... Bf5 {[%clk 0:02:03.8]} 15. g4 {[%clk 0:02:20.1]}
15... Bc8 {[%clk 0:02:02.1]} 16. Ne3 {[%clk 0:02:18.5]} 16... Nf4 {[%clk
0:02:01.6]} 17. Rxd8+ {[%clk 0:02:16.7]} 17... Kxd8 {[%clk 0:01:56.6]} 18. Bf1
{[%clk 0:02:17.6]} 18... h5 {[%clk 0:01:50.4]} 19. Nc4 {[%clk 0:02:07.6]} 19...
hxg4 {[%clk 0:01:31.9]} 20. Ng5 {[%clk 0:01:37.4]} 20... Ke8 {[%clk 0:01:11]}
21. Bxf4 {[%clk 0:01:35.6]} 21... gxh3 {[%clk 0:01:11.9]} 22. Bh2 {[%clk
0:01:23.2]} 22... b5 {[%clk 0:01:09.5]} 23. Ne3 {[%clk 0:01:19]} 23... b4 {[%clk
0:01:08.3]} 24. cxb4 {[%clk 0:01:16.6]} 24... Bxb2 {[%clk 0:01:00.2]} 25. Rb1
{[%clk 0:01:13.6]} 25... Bd4 {[%clk 0:01:00]} 26. b5 {[%clk 0:01:05.7]} 26...
Ne5 {[%clk 0:00:59.5]} 27. Rd1 {[%clk 0:00:57.2]} 27... Bxe3 {[%clk 0:00:34.2]}
28. fxe3 {[%clk 0:00:53.9]} 28... Ng4 {[%clk 0:00:31.4]} 29. Rc1 {[%clk
0:00:21.3]} 29... Bd7 {[%clk 0:00:31]} 30. Bxh3 {[%clk 0:00:18.1]} 30... f6
{[%clk 0:00:31]} 31. Bxg4 {[%clk 0:00:17.4]} 31... Bxg4 {[%clk 0:00:30.8]} 32.
Ne4 {[%clk 0:00:18]} 32... Rh5 {[%clk 0:00:29.8]} 33. a4 {[%clk 0:00:16.4]}
33... Bf3 {[%clk 0:00:28.3]} 34. Ng3 {[%clk 0:00:15.1]} 34... Rd5 {[%clk
0:00:27]} 35. Kf2 {[%clk 0:00:14.3]} 35... Bg4 {[%clk 0:00:27.5]} 36. Nf1 {[%clk
0:00:13.3]} 36... Rd3 {[%clk 0:00:24.5]} 37. Rc7 {[%clk 0:00:12.6]} 37... Ra3
{[%clk 0:00:24.4]} 38. Rxb7 {[%clk 0:00:12.1]} 38... Rxa4 {[%clk 0:00:25]} 39.
b6 {[%clk 0:00:12.5]} 39... Rb4 {[%clk 0:00:24.4]} 40. Rb8+ {[%clk 0:00:11.7]}
40... Kd7 {[%clk 0:00:24.6]} 41. Bc7 {[%clk 0:00:11.6]} 41... Be6 {[%clk
0:00:21.9]} 42. Nd2 {[%clk 0:00:10.6]} 42... Bd5 {[%clk 0:00:21.5]} 43. Ke2
{[%clk 0:00:09.9]} 43... Ke6 {[%clk 0:00:21.2]} 44. Kd3 {[%clk 0:00:09.5]} 44...
g5 {[%clk 0:00:21.7]} 45. e4 {[%clk 0:00:09.8]} 45... Bc6 {[%clk 0:00:21.8]} 46.
Kc3 {[%clk 0:00:09.9]} 46... Rb5 {[%clk 0:00:21.1]} 47. Rg8 {[%clk 0:00:09.4]}
47... Kf7 {[%clk 0:00:19.7]} 48. Rd8 {[%clk 0:00:08.7]} 48... g4 {[%clk
0:00:19.4]} 49. Rd3 {[%clk 0:00:08.4]} 49... e6 {[%clk 0:00:18.6]} 50. Kd4
{[%clk 0:00:06.3]} 50... Kg6 {[%clk 0:00:15.8]} 51. Rc3 {[%clk 0:00:06.6]} 51...
e5+ {[%clk 0:00:14.9]} 52. Ke3 {[%clk 0:00:06.5]} 52... Bd7 {[%clk 0:00:14.4]}
53. Nc4 {[%clk 0:00:06.7]} 53... Rb1 {[%clk 0:00:10.5]} 54. Nd6 {[%clk
0:00:06.6]} 54... g3 {[%clk 0:00:10.4]} 55. Kf3 {[%clk 0:00:06.1]} 55... Kg5
{[%clk 0:00:08.3]} 56. Kxg3 {[%clk 0:00:05.8]} 56... Bg4 {[%clk 0:00:07.2]} 57.
Kf2 {[%clk 0:00:04.8]} 57... Kf4 {[%clk 0:00:07]} 58. b7 {[%clk 0:00:04.3]}
58... Rb2+ {[%clk 0:00:07.4]} 59. Ke1 {[%clk 0:00:04.8]} 59... Re2+ {[%clk
0:00:07.3]} 60. Kf1 {[%clk 0:00:04.6]} 60... Rh2 {[%clk 0:00:02.3]} 61. b8=Q
{[%clk 0:00:04.8]} 61... Bf3 {[%clk 0:00:02.6]} 62. Rxf3+ {[%clk 0:00:03.9]}
62... Kxf3 {[%clk 0:00:02.9]} 63. Qb3+ {[%clk 0:00:04.4]} 63... Kf4 {[%clk
0:00:03.4]} 64. Kg1 {[%clk 0:00:04.4]} 64... Re2 {[%clk 0:00:02.6]} 65. Qd3
{[%clk 0:00:03.9]} 65... Re3 {[%clk 0:00:03]} 66. Qf1+ {[%clk 0:00:04.2]} 66...
Rf3 {[%clk 0:00:03.1]} 67. Qc1+ {[%clk 0:00:04.4]} 67... Kg3 {[%clk 0:00:03.3]}
68. Qe1+ {[%clk 0:00:04.1]} 68... Kf4 {[%clk 0:00:03.4]} 69. Nf5 {[%clk
0:00:04.5]} 69... Kg4 {[%clk 0:00:02.4]} 70. Ba5 {[%clk 0:00:04.7]} 70... Rf4
{[%clk 0:00:02.5]} 71. Qh4+ {[%clk 0:00:04.8]} 71... Kf3 {[%clk 0:00:03]} 72.
Qe1 {[%clk 0:00:05.1]} 72... Rxe4 {[%clk 0:00:03.1]} 73. Qf2+ {[%clk 0:00:04.8]}
73... Kg4 {[%clk 0:00:03.6]} 74. Ne3+ {[%clk 0:00:05.2]} 74... Kg5 {[%clk
0:00:03.7]} 75. Qf5+ {[%clk 0:00:05.5]} 75... Kh6 {[%clk 0:00:03.8]} 76. Qxe4
{[%clk 0:00:06.4]} 1-0